bitfinex/quotes_BTCUSD_20241001
["timestamp","ask_amount","ask_price","bid_price","bid_amount"]
[1727793521916,0.04729261,62873.0,62872.0,0.159053]
[1727793522132,0.07093891,62874.0,62873.0,0.15905]
[1727793522348,0.023,62875.0,62868.0,0.477188]
[1727793522578,0.04728051,62873.0,62864.0,0.0146567]
[1727793522822,0.07028051,62871.0,62859.0,0.23936234]
[1727793523052,0.07028051,62871.0,62860.0,0.23936234]
[1727793523053,0.07028051,62869.0,62860.0,0.23936234]
[1727793523285,0.023,62866.0,62860.0,0.23936234]
[1727793523521,0.04728051,62866.0,62860.0,0.23936234]
[1727793523755,0.023,62861.0,62853.0,0.23936234]
[1727793523985,0.04728051,62858.0,62853.0,0.23936234]
[1727793524222,0.09393891,62856.0,62851.0,0.00164]
[1727793524452,0.07094192,62853.0,62851.0,0.00164]
[1727793524683,0.09394192,62854.0,62851.0,0.160745]
[1727793524907,0.04729377,62855.0,62851.0,0.00164]
[1727793525129,0.20375157,62856.0,62851.0,0.160745]
[1727793525372,0.20375157,62856.0,62851.0,0.00164]
[1727793525596,0.159103,62852.0,62851.0,0.00164]
[1727793525818,0.5370608,62852.0,62851.0,0.00164]
[1727793526273,0.5370608,62852.0,62838.0,0.23936234]
[1727793526274,0.159127,62843.0,62838.0,0.23936234]
[1727793526756,0.023,62844.0,62838.0,0.23936234]
[1727793526994,0.023,62839.0,62820.0,0.159183]
[1727793527215,0.5197968,62838.0,62837.0,0.23936234]
[1727793527436,0.5197968,62838.0,62828.0,0.23936234]
[1727793527437,0.159149,62834.0,62828.0,0.23936234]
[1727793527657,0.1812,62838.0,62828.0,0.23936234]
[1727793527883,0.23936234,62830.0,62823.0,0.31835]
[1727793528195,0.39582014,62837.0,62826.0,0.159167]
[1727793528196,0.1564578,62829.0,62826.0,0.159167]
[1727793528388,0.1564578,62829.0,62815.0,0.318391]
[1727793528389,0.023,62837.0,62824.0,0.23936234]
[1727793528612,0.1812,62838.0,62824.0,0.159174]
[1727793528613,0.159155,62832.0,62824.0,0.159174]
[1727793528837,0.1564578,62832.0,62828.0,0.159164]
[1727793529066,0.1812,62838.0,62831.0,0.74638632]
[1727793529329,0.1812,62838.0,62836.0,0.159144]
[1727793529330,0.23936234,62837.0,62836.0,0.159144]
[1727793529530,0.1812,62838.0,62837.0,0.159141]
[1727793530196,0.1882,62838.0,62835.0,0.159146]
[1727793530414,0.1882,62838.0,62833.0,0.318302]
[1727793530650,0.1882,62838.0,62830.0,0.318317]
[1727793530651,0.1882,62838.0,62834.0,0.159147]
[1727793530875,0.1902,62838.0,62833.0,0.318303]
[1727793531111,0.1902,62838.0,62837.0,0.159141]
[1727793531357,0.23936234,62856.0,62837.0,0.14262811]
[1727793531358,0.2696,62851.0,62837.0,0.14262811]
[1727793531591,0.2696,62851.0,62846.0,0.159119]
[1727793531592,0.23936234,62847.0,62846.0,0.159119]
[1727793531826,0.1908,62851.0,62850.0,0.159108]
[1727793532546,0.1908,62851.0,62847.0,0.31823]
[1727793532779,0.01718715,62850.0,62849.0,0.159111]
[1727793533001,0.01718715,62850.0,62847.0,0.159115]
[1727793533261,0.01718715,62850.0,62824.0,0.23936234]
[1727793533262,0.01,62846.0,62824.0,0.23936234]
[1727793533493,0.01,62846.0,62838.0,0.23936234]
[1727793533494,0.023,62839.0,62838.0,0.23936234]
[1727793533719,0.023,62839.0,62831.0,0.23936234]
[1727793533720,0.19664495,62839.0,62831.0,0.23936234]
[1727793533943,0.023,62837.0,62831.0,0.23936234]
[1727793534168,0.023,62835.0,62824.0,0.23936234]
[1727793534405,0.17364495,62834.0,62824.0,0.23936234]
[1727793534728,0.17364495,62834.0,62813.0,0.07060225]
[1727793534729,0.159183,62821.0,62817.0,0.23936234]
[1727793534949,0.1794578,62820.0,62817.0,0.23936234]
[1727793535401,0.1794578,62820.0,62808.0,0.318428]
[1727793535402,0.22923838,62820.0,62810.0,0.2864305]
[1727793535619,0.159191,62818.0,62810.0,0.23936234]
[1727793535871,0.023,62815.0,62807.0,0.04706816]
[1727793536119,0.159218,62807.0,62803.0,0.04706816]
[1727793536345,0.159218,62807.0,62805.0,0.04706816]
[1727793536346,0.17907116,62807.0,62805.0,0.04706816]
[1727793536564,0.17907116,62807.0,62800.0,0.23936234]
[1727793537033,0.159221,62806.0,62797.0,0.159242]
[1727793537269,0.29864972,62809.0,62798.0,0.159239]
[1727793537270,0.159218,62807.0,62798.0,0.159239]
[1727793537498,0.008,62807.0,62796.0,0.31849]
[1727793537726,0.008,62807.0,62803.0,0.159226]
[1727793537955,0.008,62807.0,62806.0,0.15922]
[1727793538182,0.008,62807.0,62806.0,0.15872]
[1727793538923,0.23936234,62815.0,62814.0,0.1592]
[1727793539159,0.23936234,62825.0,62814.0,0.3184]
[1727793539391,0.23936234,62818.0,62817.0,0.159192]
[1727793539623,0.0759,62826.0,62811.0,0.1]
[1727793539624,0.31526234,62826.0,62811.0,0.1]
[1727793539868,0.31526234,62826.0,62812.0,0.318409]
[1727793540093,0.23936234,62819.0,62813.0,0.318403]
[1727793540328,0.23936234,62818.0,62807.0,0.318435]
[1727793540552,0.1564578,62817.0,62799.0,0.23936234]
[1727793540773,0.501291,62816.0,62806.0,0.23936234]
[1727793541027,0.159221,62806.0,62799.0,0.23936234]
[1727793541266,0.159223,62805.0,62799.0,0.23936234]
[1727793541501,0.023,62814.0,62792.0,0.23936234]
[1727793541502,0.12417935,62814.0,62800.0,0.23936234]
[1727793541734,0.12417935,62814.0,62792.0,0.55787234]
[1727793541735,0.15923,62803.0,62795.0,0.159247]
[1727793541956,0.159223,62805.0,62799.0,0.23936234]
[1727793542179,0.318435,62808.0,62795.0,0.318492]
[1727793542414,0.1564578,62807.0,62800.0,0.159234]
[1727793542645,0.1564578,62807.0,62794.0,0.15925]
[1727793542646,0.159228,62803.0,62794.0,0.15925]
[1727793542879,0.159231,62802.0,62794.0,0.159249]
[1727793543110,0.23936234,62806.0,62795.0,0.04262811]
[1727793543331,0.23936234,62799.0,62793.0,0.318504]
[1727793543555,0.0756,62803.0,62794.0,0.23936234]
[1727793543811,0.0756,62803.0,62802.0,0.15923]
[1727793544050,0.1879,62816.0,62794.0,0.23936234]
[1727793544051,0.23936234,62809.0,62801.0,0.42807332]
[1727793544282,0.23936234,62809.0,62808.0,0.159215]
[1727793544727,0.1829,62816.0,62806.0,0.318439]
[1727793544958,0.01664685,62815.0,62809.0,0.318423]
[1727793545196,0.01664685,62814.0,62813.0,0.159202]
[1727793545429,0.01664685,62814.0,62812.0,0.159202]
[1727793545706,0.1829,62816.0,62815.0,0.159197]
[1727793545939,0.1829,62816.0,62809.0,0.318425]
[1727793545940,0.1861,62829.0,62809.0,0.1]
[1727793546176,0.1861,62829.0,62821.0,0.318361]
[1727793546395,0.1861,62829.0,62825.0,0.159172]
[1727793546846,0.1861,62829.0,62804.0,0.25449735]
[1727793546847,0.2987861,62826.0,62804.0,0.25449735]
[1727793547070,0.17333533,62825.0,62814.0,0.23936234]
[1727793547300,0.01687753,62824.0,62814.0,0.23936234]
[1727793547581,0.1861,62829.0,62814.0,0.23936234]
[1727793547809,0.01688181,62823.0,62822.0,0.159179]
[1727793548037,0.23936234,62827.0,62813.0,0.318402]
[1727793548263,0.1861,62829.0,62816.0,0.159194]
[1727793548264,0.159179,62823.0,62816.0,0.159194]
[1727793548489,0.43507332,62825.0,62807.0,0.318433]
[1727793548714,0.43507332,62825.0,62815.0,0.23936234]
[1727793548938,0.43507332,62825.0,62807.0,0.318433]
[1727793548939,0.159193,62817.0,62811.0,0.159207]
[1727793549170,0.0167945,62816.0,62804.0,0.23936234]
[1727793549396,0.023,62811.0,62805.0,0.159222]
[1727793549617,0.0167945,62810.0,62809.0,0.159212]
[1727793550767,0.0167945,62810.0,62809.0,0.259212]
[1727793550768,0.01669145,62810.0,62809.0,0.259212]
[1727793550994,0.01669145,62810.0,62809.0,0.160212]
[1727793551224,0.01669145,62810.0,62809.0,0.001]
[1727793551473,0.17590145,62810.0,62809.0,0.001]
[1727793551706,0.36010145,62810.0,62809.0,0.001]
[1727793551934,0.20089145,62810.0,62809.0,0.001]
[1727793552393,0.4360311,62810.0,62809.0,0.001]
[1727793552620,0.5924889,62810.0,62809.0,0.001]
[1727793552840,0.318445,62806.0,62799.0,0.001642]
[1727793553071,0.43205905,62810.0,62804.0,0.23936234]
[1727793553072,0.0164716,62805.0,62804.0,0.23936234]
[1727793553290,0.0164716,62805.0,62799.0,0.001642]
[1727793553291,0.0164716,62805.0,62800.0,0.318467]
[1727793553532,0.182214,62809.0,62801.0,0.318465]
[1727793553533,0.01646309,62804.0,62801.0,0.318465]
[1727793553760,0.01661533,62808.0,62803.0,0.159227]
[1727793554029,0.0166133,62807.0,62806.0,0.15922]
[1727793554247,0.0166133,62807.0,62804.0,0.159224]
[1727793554466,0.023,62809.0,62805.0,0.159221]
[1727793554467,0.0166133,62806.0,62805.0,0.159221]
[1727793554689,0.0166133,62806.0,62803.0,0.318453]
[1727793554690,0.0166133,62806.0,62804.0,0.159224]
[1727793554911,0.0166133,62805.0,62804.0,0.159225]
[1727793555130,0.0166133,62808.0,62804.0,0.159225]
[1727793555389,0.23936234,62805.0,62802.0,0.159229]
[1727793555608,0.023,62809.0,62801.0,0.318465]
[1727793555825,0.01662001,62808.0,62803.0,0.159226]
[1727793556043,0.023,62809.0,62806.0,0.159218]
[1727793556265,0.023,62809.0,62803.0,0.318451]
[1727793556522,0.001,62808.0,62804.0,0.23936234]
[1727793556719,0.001,62808.0,62807.0,0.159217]
[1727793556945,0.01756628,62808.0,62807.0,0.159217]
[1727793557633,0.001,62808.0,62807.0,0.159217]
[1727793557865,0.007,62809.0,62808.0,0.159215]
[1727793558099,0.007,62809.0,62805.0,0.318444]
[1727793558330,0.007,62809.0,62808.0,0.159215]
[1727793558560,0.007,62809.0,62808.0,0.4156728]
[1727793559025,0.02375712,62809.0,62808.0,0.259215]
[1727793559535,0.02375712,62809.0,62808.0,0.4156728]
[1727793559803,0.02475712,62809.0,62808.0,0.4156728]
[1727793560076,0.001,62809.0,62808.0,0.4156728]
[1727793560339,0.01763702,62809.0,62808.0,0.4156728]
[1727793560569,0.001,62809.0,62808.0,0.9013578]
[1727793560799,0.23936234,62818.0,62808.0,0.9013578]
[1727793560800,0.23936234,62818.0,62808.0,0.78721493]
[1727793561022,0.23936234,62818.0,62817.0,0.259192]
[1727793561240,0.2558978,62818.0,62817.0,0.4156498]
[1727793561457,0.01653546,62818.0,62817.0,0.4156498]
[1727793561915,0.000821,62826.0,62825.0,0.159172]
[1727793562158,0.159183,62821.0,62812.0,0.159203]
[1727793562396,0.000821,62809.0,62808.0,0.001]
[1727793562632,0.000821,62809.0,62804.0,0.23936234]
[1727793562633,0.159221,62806.0,62804.0,0.23936234]
[1727793562903,0.159221,62806.0,62799.0,0.001642]
[1727793562904,0.01655238,62805.0,62799.0,0.001642]
[1727793563126,0.182235,62800.0,62799.0,0.001642]
[1727793563348,0.3386928,62800.0,62799.0,0.001642]
[1727793563594,0.4205928,62800.0,62799.0,0.001642]
[1727793563818,0.43697168,62800.0,62799.0,0.001642]
[1727793564067,0.43697168,62800.0,62778.0,0.001642]
[1727793564068,0.159263,62789.0,62778.0,0.001642]
[1727793564362,0.159263,62789.0,62781.0,0.23936234]
[1727793564363,0.5289208,62789.0,62781.0,0.23936234]
[1727793564812,0.5289208,62789.0,62778.0,0.001642]
[1727793564813,0.182288,62779.0,62778.0,0.001642]
[1727793565042,0.4184458,62779.0,62778.0,0.001642]
[1727793565267,0.4184458,62779.0,62760.0,0.001644]
[1727793565268,0.159296,62776.0,62760.0,0.001644]
[1727793565522,0.76682712,62776.0,62760.0,0.001644]
[1727793565776,0.76682712,62776.0,62768.0,0.23936234]
[1727793565999,0.8166438,62776.0,62768.0,0.23936234]
[1727793566718,0.8306438,62776.0,62768.0,0.23936234]
[1727793567007,0.8446438,62776.0,62768.0,0.23936234]
[1727793567230,0.8306438,62776.0,62761.0,0.23936234]
[1727793567456,0.51489,62776.0,62769.0,0.27956365]
[1727793567678,0.50589,62776.0,62773.0,0.159302]
[1727793567895,0.50589,62776.0,62769.0,0.23936234]
[1727793568125,0.50589,62776.0,62764.0,0.318653]
[1727793568126,0.688186,62776.0,62764.0,0.318653]
[1727793568352,0.688186,62776.0,62768.0,0.159316]
[1727793568567,0.674186,62776.0,62765.0,0.23936234]
[1727793568786,0.51489,62776.0,62768.0,0.318628]
[1727793569010,0.51489,62776.0,62771.0,0.320253]
[1727793569238,0.51489,62776.0,62775.0,0.160939]
[1727793569239,0.49189,62776.0,62775.0,0.160939]
[1727793569475,0.49189,62776.0,62775.0,0.00164]
[1727793570185,0.47789,62776.0,62775.0,0.160939]
[1727793570415,0.50589,62776.0,62775.0,0.20114031]
[1727793570639,0.50589,62776.0,62775.0,0.160939]
[1727793570875,0.47789,62776.0,62775.0,0.160939]
[1727793571099,0.47989,62776.0,62775.0,0.3173968]
[1727793571327,0.47989,62776.0,62775.0,0.4173968]
[1727793571549,0.47789,62776.0,62775.0,0.4173968]
[1727793571775,0.47889,62776.0,62775.0,0.4173968]
[1727793572532,0.001,62776.0,62775.0,0.4173968]
[1727793573007,0.002,62776.0,62775.0,0.4183968]
[1727793573445,0.002,62776.0,62775.0,1.9844508]
[1727793573694,0.001,62776.0,62775.0,1.8871358]
[1727793573915,0.23936234,62789.0,62788.0,0.259266]
[1727793574142,0.25571801,62789.0,62788.0,0.84379712]
[1727793574359,0.0119736,62789.0,62788.0,1.84481543]
[1727793574578,0.0119736,62789.0,62788.0,1.80661412]
[1727793575024,0.23936234,62804.0,62795.0,0.1]
[1727793575264,0.23936234,62804.0,62803.0,0.68730132]
[1727793575472,0.23936234,62804.0,62803.0,0.259228]
[1727793575720,0.23936234,62804.0,62803.0,0.1]
[1727793575997,0.23936234,62804.0,62788.0,0.01480118]
[1727793575998,0.39858834,62804.0,62789.0,0.318525]
[1727793576230,0.39858834,62804.0,62782.0,0.23936234]
[1727793576231,0.1815,62805.0,62792.0,0.23936234]
[1727793576466,0.159231,62802.0,62792.0,0.159255]
[1727793576724,0.159231,62802.0,62793.0,0.159253]
[1727793576976,0.159236,62800.0,62790.0,0.159259]
[1727793577248,0.159236,62800.0,62788.0,0.002]
[1727793577249,0.159241,62798.0,62788.0,0.161265]
[1727793577466,0.159244,62797.0,62787.0,0.159266]
[1727793577717,0.1794578,62802.0,62782.0,0.23936234]
[1727793577718,0.001,62789.0,62788.0,0.159266]
[1727793578162,0.023,62798.0,62785.0,0.318546]
[1727793578392,0.23936234,62797.0,62793.0,0.159252]
[1727793578652,0.023,62801.0,62783.0,0.1]
[1727793578868,0.0814,62803.0,62793.0,0.318506]
[1727793579095,0.23936234,62797.0,62792.0,0.159254]
[1727793579340,0.01,62800.0,62784.0,0.1564578]
[1727793579341,0.169236,62800.0,62787.0,0.318536]
[1727793579559,0.0814,62803.0,62792.0,0.159254]
[1727793579560,0.240629,62803.0,62792.0,0.159254]
[1727793579855,0.240629,62803.0,62787.0,0.1564578]
[1727793580112,0.006,62798.0,62794.0,0.15925]
[1727793580364,0.006,62798.0,62791.0,0.159256]
[1727793580602,0.159237,62800.0,62791.0,0.159256]
[1727793580823,0.159237,62800.0,62783.0,0.1]
[1727793580824,0.004,62797.0,62787.0,0.318535]
[1727793581037,0.004,62797.0,62792.0,0.159255]
[1727793581267,0.023,62802.0,62795.0,0.159247]
[1727793581508,0.023,62802.0,62787.0,0.318535]
[1727793581509,0.159239,62799.0,62787.0,0.318535]
[1727793581725,0.023,62800.0,62792.0,0.159255]
[1727793581949,0.003,62798.0,62787.0,0.318535]
[1727793582169,0.341472,62800.0,62782.0,0.11494559]
[1727793582394,0.023,62800.0,62790.0,0.15926]
[1727793582608,0.03,62802.0,62782.0,0.2564578]
[1727793582824,0.023,62802.0,62797.0,0.159241]
[1727793583041,0.008,62800.0,62797.0,0.159241]
[1727793583258,0.008,62800.0,62797.0,0.159242]
[1727793583472,0.008,62800.0,62784.0,0.74662332]
[1727793583473,0.023,62803.0,62788.0,0.31853]
[1727793583696,0.023,62803.0,62796.0,0.159243]
[1727793583915,0.23936234,62804.0,62796.0,0.159243]
[1727793583916,0.023,62801.0,62796.0,0.159243]
[1727793584124,0.023,62801.0,62792.0,0.318508]
[1727793584342,0.023,62803.0,62796.0,0.159244]
[1727793584558,0.023,62803.0,62795.0,0.318496]
[1727793584780,0.007,62800.0,62796.0,0.159244]
[1727793585253,0.029,62803.0,62796.0,0.159244]
[1727793585485,0.006,62803.0,62802.0,0.58730332]
[1727793586160,0.006,62803.0,62802.0,0.15923]
[1727793586653,0.23936234,62811.0,62808.0,0.159215]
[1727793587109,0.01741708,62809.0,62807.0,0.318434]
[1727793587330,0.01741708,62809.0,62795.0,0.23936234]
[1727793587331,0.01659608,62808.0,62795.0,0.23936234]
[1727793587629,0.01659608,62807.0,62801.0,0.01476211]
[1727793587881,0.000821,62809.0,62808.0,0.159215]
[1727793588151,0.0174419,62809.0,62808.0,0.4156728]
[1727793588592,0.0224419,62809.0,62808.0,0.4156728]
[1727793588842,0.0174419,62809.0,62808.0,0.4156728]
[1727793590899,0.001821,62809.0,62808.0,0.4156728]
[1727793591123,0.001821,62809.0,62808.0,0.43068991]
[1727793591395,0.01835501,62809.0,62808.0,0.43068991]
[1727793592072,0.01935501,62809.0,62808.0,0.28723211]
[1727793592907,0.01935501,62809.0,62808.0,0.013]
[1727793592908,0.04235501,62809.0,62808.0,0.013]
[1727793592921,0.47631281,62809.0,62808.0,0.013]
[1727793593179,0.31985501,62809.0,62808.0,0.172215]
[1727793593434,0.29685501,62809.0,62808.0,0.172215]
[1727793593679,0.21545501,62809.0,62808.0,0.172215]
[1727793594186,0.21445501,62809.0,62804.0,0.31845]
[1727793594415,0.21445501,62809.0,62806.0,0.159219]
[1727793594416,0.197921,62809.0,62806.0,0.159219]
[1727793594641,0.01665935,62808.0,62806.0,0.159219]
[1727793594875,0.196921,62809.0,62808.0,0.159215]
[1727793595379,0.214644,62809.0,62808.0,0.159215]
[1727793595638,0.213644,62809.0,62808.0,0.15716542]
[1727793595895,0.017544,62809.0,62808.0,0.15716542]
[1727793596137,0.017544,62809.0,62808.0,0.25716542]
[1727793596138,0.020544,62809.0,62808.0,0.25716542]
[1727793596358,0.003821,62809.0,62808.0,0.25716542]
[1727793596662,0.003821,62809.0,62805.0,0.318444]
[1727793596931,0.003821,62809.0,62793.0,0.74657432]
[1727793596932,0.159224,62805.0,62794.0,0.23936234]
[1727793597186,0.09993582,62808.0,62794.0,0.23936234]
[1727793597187,0.023,62806.0,62794.0,0.23936234]
[1727793597430,0.26236234,62806.0,62796.0,0.31849]
[1727793597681,0.01665605,62805.0,62793.0,0.318504]
[1727793597923,0.01665605,62805.0,62795.0,0.318491]
[1727793598160,0.01665605,62804.0,62797.0,0.159241]
[1727793598404,0.01665605,62803.0,62798.0,0.15924]
[1727793598653,0.01665605,62802.0,62797.0,0.318486]
[1727793598891,0.01665605,62801.0,62792.0,0.418511]
[1727793599127,0.01665605,62800.0,62799.0,0.159237]
[1727793599349,0.01665605,62800.0,62798.0,0.159238]
[1727793599607,0.005,62804.0,62799.0,0.159238]
[1727793599852,0.01660649,62803.0,62797.0,0.318486]
[1727793600093,0.01660649,62802.0,62799.0,0.159237]
[1727793600372,0.004,62804.0,62795.0,0.1]
[1727793600373,0.01660649,62801.0,62795.0,0.1]
[1727793600636,0.023,62800.0,62787.0,0.318534]
[1727793600879,0.01663499,62801.0,62799.0,0.159237]
[1727793601140,0.159244,62797.0,62787.0,0.159268]
[1727793601380,0.01663499,62801.0,62780.0,0.23936234]
[1727793601381,0.369961,62790.0,62780.0,0.23936234]
[1727793601831,0.023,62782.0,62775.0,0.00164]
[1727793602077,0.023,62778.0,62775.0,0.00164]
[1727793602943,0.023,62778.0,62776.0,0.159294]
[1727793603205,0.23936234,62789.0,62776.0,0.477888]
[1727793603206,0.0169388,62777.0,62776.0,0.477888]
[1727793603464,0.0169388,62777.0,62776.0,1.16241912]
[1727793603465,0.0337636,62777.0,62776.0,1.16241912]
[1727793603703,0.05058846,62777.0,62776.0,0.7343458]
[1727793603961,0.0169388,62777.0,62776.0,0.7343458]
[1727793604192,0.01682416,62777.0,62776.0,1.16241912]
[1727793604437,0.01682416,62777.0,62776.0,4.02396512]
[1727793604682,0.01682416,62777.0,62776.0,1.28682512]
[1727793604924,0.01682416,62777.0,62776.0,1.26411012]
[1727793605396,0.23936234,62789.0,62776.0,1.26411012]
[1727793605397,0.23936234,62789.0,62788.0,0.259266]
[1727793605681,0.23936234,62789.0,62781.0,0.318564]
[1727793605963,0.23936234,62789.0,62776.0,0.17271567]
[1727793605964,0.159249,62795.0,62783.0,0.318553]
[1727793606204,0.023,62787.0,62780.0,0.159285]
[1727793606474,0.023,62787.0,62776.0,0.01925787]
[1727793606475,0.023,62787.0,62778.0,0.23936234]
[1727793606717,0.023,62787.0,62776.0,0.01925787]
[1727793606718,0.25589818,62786.0,62783.0,0.318553]
[1727793606957,0.01653584,62785.0,62776.0,0.01525787]
[1727793607200,0.01653584,62784.0,62780.0,0.159285]
[1727793607447,0.03953584,62783.0,62775.0,0.00164]
[1727793607686,0.023,62781.0,62780.0,0.159286]
[1727793607934,0.1931,62782.0,62781.0,0.159283]
[1727793608178,0.01666782,62782.0,62781.0,0.159283]
[1727793609141,0.01666782,62782.0,62781.0,0.161283]
[1727793609403,0.023,62790.0,62784.0,0.159275]
[1727793609655,0.006,62786.0,62785.0,0.159273]
[1727793609927,0.01662814,62786.0,62785.0,0.159273]
[1727793610457,0.001,62782.0,62781.0,0.006]
[1727793610719,0.01662814,62782.0,62781.0,0.165283]
[1727793610943,0.01662814,62782.0,62781.0,0.166925]
[1727793611209,0.01662814,62792.0,62791.0,0.159258]
[1727793611475,0.01662814,62792.0,62782.0,0.42807332]
[1727793611476,0.01669357,62792.0,62782.0,0.42807332]
[1727793611788,0.23936234,62797.0,62796.0,0.159245]
[1727793611996,0.23936234,62805.0,62800.0,0.159235]
[1727793612239,0.0165914,62804.0,62800.0,0.159235]
[1727793612484,0.0174124,62801.0,62800.0,0.159235]
[1727793612726,0.01741059,62801.0,62800.0,0.159235]
[1727793612989,0.01741164,62801.0,62800.0,0.159235]
[1727793613463,0.02041164,62801.0,62800.0,0.159235]
[1727793613720,0.01741164,62801.0,62800.0,0.159235]
[1727793613953,0.01841164,62801.0,62800.0,0.159235]
[1727793614663,0.001821,62801.0,62800.0,0.4156928]
[1727793615383,0.000821,62801.0,62800.0,0.43043481]
[1727793615861,0.001821,62801.0,62800.0,0.43443481]
[1727793616150,0.000821,62809.0,62801.0,0.005]
[1727793616407,0.000821,62809.0,62808.0,0.68928832]
[1727793616643,0.000821,62809.0,62808.0,3.36168512]
[1727793616886,0.000821,62809.0,62808.0,4.14640712]
[1727793617161,0.000821,62809.0,62808.0,1.49541712]
[1727793617599,0.000821,62826.0,62825.0,0.159172]
[1727793618132,0.000821,62826.0,62825.0,3.29832412]
[1727793618136,0.23936234,62827.0,62825.0,3.29832412]
[1727793618137,0.23936234,62827.0,62826.0,0.259169]
[1727793618366,0.1937,62848.0,62826.0,0.259169]
[1727793618367,0.1937,62848.0,62833.0,0.159152]
[1727793618630,0.1937,62848.0,62833.0,0.4156098]
[1727793618870,0.1937,62848.0,62840.0,0.159134]
[1727793619136,0.01660672,62841.0,62840.0,0.259134]
[1727793619432,0.1937,62848.0,62840.0,0.259134]
[1727793619433,0.1937,62848.0,62847.0,0.159116]
[1727793619663,0.2102916,62848.0,62847.0,0.159116]
[1727793620161,0.1937,62848.0,62847.0,0.159116]
[1727793620405,0.01658132,62848.0,62847.0,0.159116]
[1727793620677,0.01658132,62848.0,62847.0,0.33034856]
[1727793620933,0.00082,62851.0,62850.0,0.259108]
[1727793621170,0.00082,62851.0,62850.0,0.84565758]
[1727793621407,0.00082,62851.0,62850.0,0.84363912]
[1727793621952,0.00082,62851.0,62850.0,0.259108]
[1727793622978,0.00082,62851.0,62850.0,0.1]
[1727793623200,0.00082,62851.0,62850.0,0.259108]
[1727793623468,0.00182,62851.0,62850.0,0.271108]
[1727793623721,0.00182,62851.0,62850.0,0.016]
[1727793623985,0.00082,62851.0,62850.0,0.163108]
[1727793624290,0.00082,62851.0,62847.0,0.159115]
[1727793624555,0.159128,62843.0,62836.0,0.159143]
[1727793624812,0.1011,62849.0,62836.0,0.159143]
[1727793624813,0.023,62847.0,62842.0,0.318258]
[1727793625080,0.023,62843.0,62842.0,0.159129]
[1727793625328,0.023,62848.0,62834.0,0.23936234]
[1727793625821,0.23936234,62845.0,62834.0,0.1564578]
[1727793625826,0.23936234,62845.0,62816.0,0.23936234]
[1727793626094,0.159149,62834.0,62826.0,0.23936234]
[1727793626345,0.023,62833.0,62826.0,0.23936234]
[1727793626576,0.023,62833.0,62827.0,0.159165]
[1727793626812,0.023,62833.0,62829.0,0.15916]
[1727793627098,0.023,62833.0,62832.0,0.159154]
[1727793627334,0.023,62839.0,62832.0,0.318308]
[1727793627586,0.023,62839.0,62833.0,0.318303]
[1727793627850,0.023,62842.0,62832.0,0.318308]
[1727793628102,0.26236234,62843.0,62842.0,0.159129]
[1727793628366,0.23936234,62843.0,62842.0,0.159129]
[1727793628589,0.1852,62844.0,62843.0,0.159126]
[1727793629532,0.1852,62844.0,62842.0,0.159128]
[1727793630011,0.1852,62844.0,62839.0,0.17409974]
[1727793630255,0.159135,62840.0,62833.0,0.15915]
[1727793630495,0.318258,62842.0,62832.0,0.001]
[1727793630496,0.159144,62836.0,62832.0,0.001]
[1727793630786,0.013,62842.0,62832.0,0.001]
[1727793630787,0.159152,62833.0,62832.0,0.001]
[1727793631039,0.023,62833.0,62832.0,0.001]
[1727793631271,0.023,62832.0,62828.0,0.159163]
[1727793631530,0.023,62833.0,62828.0,0.159163]
[1727793631756,0.023,62833.0,62823.0,0.23936234]
[1727793631757,0.01359621,62831.0,62824.0,0.318349]
[1727793632007,0.01379516,62832.0,62823.0,0.23936234]
[1727793632260,0.159148,62835.0,62830.0,0.159157]
[1727793632502,0.42151234,62834.0,62828.0,0.159163]
[1727793632722,0.19585498,62834.0,62828.0,0.159163]
[1727793632952,0.19585498,62834.0,62822.0,0.01465286]
[1727793632953,0.35500398,62834.0,62822.0,0.01465286]
[1727793633188,0.004,62833.0,62823.0,0.23936234]
[1727793633428,0.023,62832.0,62826.0,0.159168]
[1727793633670,0.023,62826.0,62809.0,0.23936234]
[1727793633907,0.1838,62827.0,62826.0,0.159169]
[1727793634134,0.318301,62834.0,62821.0,0.318362]
[1727793634135,0.007,62834.0,62821.0,0.318362]
[1727793634360,0.007,62834.0,62829.0,0.15916]
[1727793634609,0.23936234,62836.0,62834.0,0.159148]
[1727793634852,0.183,62838.0,62834.0,0.159148]
[1727793634853,0.183,62838.0,62834.0,0.318298]
[1727793635080,0.00082,62851.0,62833.0,0.1]
[1727793635081,0.2645,62850.0,62833.0,0.1]
[1727793635312,0.2645,62850.0,62844.0,0.159124]
[1727793635781,0.2645,62850.0,62839.0,0.636538]
[1727793635782,0.2645,62850.0,62840.0,0.318264]
[1727793636014,0.2645,62850.0,62833.0,0.1]
[1727793636015,0.189122,62845.0,62833.0,0.1]
[1727793636258,0.000822,62836.0,62835.0,0.159146]
[1727793637320,0.009822,62836.0,62835.0,0.159146]
[1727793637534,0.000822,62836.0,62835.0,0.159146]
[1727793638127,0.009822,62836.0,62835.0,0.159146]
[1727793638358,0.000822,62836.0,62835.0,0.159146]
[1727793638614,0.007822,62836.0,62835.0,0.159146]
[1727793638817,0.007822,62836.0,62835.0,0.160146]
[1727793639347,0.007822,62836.0,62835.0,0.17495502]
[1727793639982,0.000822,62836.0,62835.0,0.17495502]
[1727793640195,0.000822,62836.0,62835.0,0.17995502]
[1727793640404,0.000822,62836.0,62835.0,0.006]
[1727793640608,0.000822,62836.0,62835.0,0.165146]
[1727793641260,0.000822,62836.0,62835.0,0.164146]
[1727793641491,0.005822,62836.0,62835.0,0.4156038]
[1727793641909,0.003822,62836.0,62835.0,0.259146]
[1727793643010,0.003822,62836.0,62835.0,0.4156038]
[1727793643011,0.000822,62836.0,62835.0,0.4156038]
[1727793643677,0.000822,62836.0,62835.0,0.4206038]
[1727793644090,0.000822,62836.0,62835.0,0.4176038]
[1727793644520,0.00082,62851.0,62850.0,0.159108]